bitfinex/quotes_BTCUSD_20230101
["timestamp","ask_amount","ask_price","bid_price","bid_amount"]
[1672591272978,3.78183041,16591.0,16590.0,0.32013523]
[1672591273328,3.78183041,16591.0,16590.0,0.31213523]
[1672591273577,4.22316864,16591.0,16590.0,0.32013523]
[1672591273818,3.78183041,16591.0,16590.0,0.32013523]
[1672591274037,3.78183041,16591.0,16590.0,0.31213523]
[1672591274281,3.78183041,16591.0,16590.0,0.32013523]
[1672591274600,3.78183041,16591.0,16590.0,0.31213523]
[1672591274867,2.8901388,16591.0,16590.0,0.32013523]
[1672591275862,3.78183041,16591.0,16590.0,0.32013523]
[1672591277054,3.78183041,16591.0,16590.0,0.31213523]
[1672591277301,3.17909441,16591.0,16590.0,0.32013523]
[1672591277522,3.17909441,16591.0,16590.0,0.31213523]
[1672591277765,3.17909441,16591.0,16590.0,0.32013523]
[1672591277976,3.17909441,16591.0,16590.0,0.31213523]
[1672591278723,3.44541705,16591.0,16590.0,0.31213523]
[1672591279395,3.44541705,16591.0,16590.0,0.32013523]
[1672591279666,3.17909441,16591.0,16590.0,0.31213523]
[1672591279933,3.17909441,16591.0,16590.0,0.32013523]
[1672591280673,3.78183041,16591.0,16590.0,0.32013523]
[1672591287437,3.76361741,16591.0,16590.0,0.32013523]
[1672591288619,3.76361741,16591.0,16590.0,0.31213523]
[1672591288620,4.20313444,16591.0,16590.0,0.31213523]
[1672591289106,4.82408344,16591.0,16590.0,0.31213523]
[1672591289594,4.82408344,16591.0,16590.0,0.32013523]
[1672591290164,4.22134744,16591.0,16590.0,0.32013523]
[1672591292317,4.82408344,16591.0,16590.0,0.32013523]
[1672591292986,4.82408344,16591.0,16590.0,0.3200304]
[1672591295507,4.22134744,16591.0,16590.0,0.3200304]
[1672591298765,4.22134744,16591.0,16590.0,0.3120304]
[1672591298979,4.22134744,16591.0,16590.0,0.3200304]
[1672591302015,4.82408344,16591.0,16590.0,0.3200304]
[1672591303013,4.22134744,16591.0,16590.0,0.3200304]
[1672591303982,4.82408344,16591.0,16590.0,0.3200304]
[1672591304343,4.82408344,16591.0,16590.0,0.27243378]
[1672591304582,4.22134744,16591.0,16590.0,0.38993246]
[1672591308385,4.22134744,16591.0,16590.0,0.38193246]
[1672591308657,4.22134744,16591.0,16590.0,0.38993246]
[1672591308900,4.82408344,16591.0,16590.0,0.38193246]
[1672591309152,4.37001641,16591.0,16590.0,0.38993246]
[1672591310470,3.76728041,16591.0,16590.0,0.38993246]
[1672591310693,4.23565765,16591.0,16590.0,0.38993246]
[1672591315235,4.4687375,16591.0,16590.0,0.38993246]
[1672591315473,3.64548587,16591.0,16590.0,0.35093922]
[1672591315967,4.62634664,16591.0,16590.0,0.35093922]
[1672591317200,3.58548587,16591.0,16590.0,0.29093922]
[1672591317795,3.58548587,16591.0,16590.0,0.28293922]
[1672591318548,3.71448587,16591.0,16590.0,0.28293922]
[1672591319031,3.84348587,16591.0,16590.0,0.28493922]
[1672591321326,3.84348587,16591.0,16590.0,0.2564453]
[1672591323991,4.82419937,16591.0,16590.0,0.2564453]
[1672591324244,3.8433386,16591.0,16590.0,0.2564453]
[1672591327440,3.8433386,16591.0,16590.0,0.23080078]
[1672591333425,3.8433386,16591.0,16590.0,0.20772071]
[1672591335664,3.8433386,16591.0,16590.0,0.24209018]
[1672591336414,3.8383386,16591.0,16590.0,0.24209018]
[1672591339674,3.8383386,16591.0,16590.0,0.21788117]
[1672591339928,3.85660955,16591.0,16590.0,0.21788117]
[1672591340434,4.83747032,16591.0,16590.0,0.10707485]
[1672591344619,4.83747032,16591.0,16590.0,0.05311551]
[1672591344879,4.83747032,16591.0,16590.0,0.07311551]
[1672591345366,4.83747032,16591.0,16590.0,0.06580396]
[1672591346077,4.83739181,16591.0,16590.0,0.06580396]
[1672591348569,4.83739181,16591.0,16590.0,0.0328069]
[1672591350563,4.83739181,16591.0,16590.0,9e-07]
[1672591350803,4.83739181,16591.0,16587.0,0.9006]
[1672591351058,3.59352849,16590.0,16587.0,0.9006]
[1672591351304,3.49160452,16589.0,16587.0,0.9006]
[1672591351523,1.88886852,16588.0,16587.0,0.4895]
[1672591351768,3.69740352,16588.0,16585.0,0.48759726]
[1672591352012,3.69740352,16588.0,16583.0,0.4111]
[1672591352013,2.85709502,16588.0,16587.0,0.001]
[1672591352285,4.04339392,16588.0,16587.0,0.001]
[1672591352795,4.04339392,16588.0,16583.0,0.9028]
[1672591352796,4.04339392,16588.0,16584.0,0.00015]
[1672591353043,1.38987528,16586.0,16584.0,0.00015]
[1672591353283,2.88923052,16585.0,16584.0,0.00015]
[1672591353789,3.19773052,16585.0,16584.0,9e-05]
[1672591354035,3.57962367,16585.0,16584.0,0.00209]
[1672591354276,3.57962367,16585.0,16583.0,0.4917]
[1672591354512,0.629449,16584.0,16583.0,0.4917]
[1672591354755,2.59943056,16584.0,16583.0,0.4917]
[1672591355008,2.59943056,16584.0,16583.0,0.4916334]
[1672591355254,2.59943056,16584.0,16582.0,1.03941879]
[1672591355513,0.620949,16583.0,16582.0,1.03941879]
[1672591355760,1.835503,16583.0,16582.0,0.5]
[1672591356245,2.31967841,16583.0,16582.0,0.5]
[1672591356727,2.92270541,16583.0,16582.0,0.5]
[1672591356971,3.05370541,16583.0,16582.0,0.5]
[1672591357245,2.92270541,16583.0,16582.0,0.5]
[1672591358494,3.05370541,16583.0,16582.0,0.501]
[1672591358740,2.92270541,16583.0,16582.0,0.5]
[1672591359008,3.05270541,16583.0,16582.0,0.502]
[1672591359523,2.92270541,16583.0,16582.0,0.5]
[1672591360286,3.05270541,16583.0,16582.0,0.502]
[1672591360537,2.92270541,16583.0,16582.0,0.5]
[1672591362009,3.05370541,16583.0,16582.0,0.501]
[1672591362260,3.05370541,16583.0,16582.0,0.5]
[1672591362505,3.18370541,16583.0,16582.0,0.502]
[1672591362784,2.92270541,16583.0,16582.0,0.5]
[1672591363020,3.3919179,16583.0,16582.0,0.501]
[1672591363262,3.2609179,16583.0,16582.0,0.5]
[1672591363511,3.3909179,16583.0,16582.0,0.502]
[1672591363754,3.3909179,16583.0,16582.0,0.5]
[1672591364000,3.5219179,16583.0,16582.0,0.501]
[1672591364945,3.2609179,16583.0,16582.0,0.5]
[1672591365198,3.3909179,16583.0,16582.0,0.502]
[1672591365683,3.2609179,16583.0,16582.0,0.5]
[1672591365921,3.3919179,16583.0,16582.0,0.501]
[1672591366158,3.3919179,16583.0,16582.0,0.5]
[1672591366159,3.2609179,16583.0,16582.0,0.5]
[1672591366402,3.85033742,16583.0,16582.0,0.502]
[1672591366654,3.72033742,16583.0,16582.0,0.5]
[1672591366899,4.25652519,16583.0,16582.0,0.501]
[1672591367155,4.55652519,16583.0,16582.0,0.501]
[1672591367652,4.55652519,16583.0,16582.0,0.45090001]
[1672591368148,4.42552519,16583.0,16582.0,0.44990001]
[1672591368413,4.55552519,16583.0,16582.0,0.45183341]
[1672591368690,4.42552519,16583.0,16582.0,0.44983341]
[1672591368914,4.55652519,16583.0,16582.0,0.45083341]
[1672591369409,5.1342464,16583.0,16582.0,0.45083341]
[1672591369653,4.8342464,16583.0,16582.0,0.45083341]
[1672591369898,4.55652519,16583.0,16582.0,0.45083341]
[1672591373189,3.69734129,16583.0,16582.0,0.45083341]
[1672591373433,4.58581969,16583.0,16582.0,0.45083341]
[1672591373671,3.69734129,16583.0,16582.0,0.45083341]
[1672591374176,4.58588234,16583.0,16582.0,0.45083341]
[1672591374893,5.07482612,16583.0,16582.0,0.45083341]
[1672591375140,4.58588234,16583.0,16582.0,0.45083341]
[1672591376147,5.06400314,16583.0,16582.0,0.45083341]
[1672591376391,4.58588234,16583.0,16582.0,0.45083341]
[1672591377640,4.58560012,16583.0,16582.0,0.45083341]
[1672591378120,4.58555383,16583.0,16582.0,0.45083341]
[1672591378622,3.62310746,16583.0,16582.0,0.45083341]
[1672591385808,2.56953,16583.0,16582.0,0.61059291]
[1672591386346,1.948581,16583.0,16582.0,0.61059291]
[1672591386836,2.95458841,16583.0,16582.0,0.61059291]
[1672591387080,3.57553741,16583.0,16582.0,0.61059291]
[1672591387325,3.99339295,16583.0,16582.0,0.61059291]
[1672591389033,3.57553741,16583.0,16582.0,0.61059291]
[1672591392314,3.57553741,16583.0,16582.0,0.61053135]
[1672591393765,3.57553741,16583.0,16582.0,0.61653135]
[1672591397289,4.46374995,16583.0,16582.0,0.61653135]
[1672591402566,3.57553741,16583.0,16582.0,0.61653135]
[1672591406557,2.97251041,16583.0,16582.0,0.61653135]
[1672591406807,3.04524817,16583.0,16582.0,0.61653135]
[1672591407835,2.91424817,16583.0,16582.0,0.61553135]
[1672591408052,3.03224817,16583.0,16582.0,0.61853135]
[1672591411553,2.95351041,16583.0,16582.0,0.61253135]
[1672591411796,2.95101041,16583.0,16582.0,0.61253135]
[1672591414014,2.95951041,16583.0,16582.0,0.61253135]
[1672591418052,3.84772295,16583.0,16582.0,0.61253135]
[1672591429757,4.45074995,16583.0,16582.0,0.61253135]
[1672591430001,4.95612675,16583.0,16582.0,0.61253135]
[1672591435085,4.35309975,16583.0,16582.0,0.61253135]
[1672591435627,3.84772295,16583.0,16582.0,0.61253135]
[1672591435870,3.84772295,16583.0,16582.0,0.61243553]
[1672591437111,4.45074995,16583.0,16582.0,0.61243553]
[1672591438368,3.84772295,16583.0,16582.0,0.61243553]
[1672591439880,4.45074995,16583.0,16582.0,0.61243553]
[1672591440149,4.57336936,16583.0,16582.0,0.61243553]
[1672591440388,3.84772295,16583.0,16582.0,0.61243553]
[1672591440875,3.22677395,16583.0,16582.0,0.61243553]
[1672591444382,3.82980095,16583.0,16582.0,0.61243553]
[1672591448123,4.45074995,16583.0,16582.0,0.61243553]
[1672591448384,4.95612675,16583.0,16582.0,0.61243553]
[1672591449896,4.45074995,16583.0,16582.0,0.61243553]
[1672591454850,3.39009503,16583.0,16582.0,0.61243553]
[1672591455085,2.76914603,16583.0,16582.0,0.61243553]
[1672591456075,2.76914603,16583.0,16582.0,0.61231836]
[1672591456325,3.37217303,16583.0,16582.0,0.61231836]
[1672591458126,3.39009503,16583.0,16582.0,0.61231836]
[1672591458371,2.76914603,16583.0,16582.0,0.61231836]
[1672591460140,1.88093349,16583.0,16582.0,0.61231836]
[1672591460359,2.50188249,16583.0,16582.0,0.61231836]
[1672591460845,3.39009503,16583.0,16582.0,0.61231836]
[1672591461087,2.50188249,16583.0,16582.0,0.61231836]
[1672591463083,2.95947333,16583.0,16582.0,0.61231836]
[1672591466551,2.50188249,16583.0,16582.0,0.61231836]
[1672591466834,1.88093349,16583.0,16582.0,0.61231836]
[1672591468803,1.27790649,16583.0,16582.0,0.61231836]
[1672591470545,1.89885549,16583.0,16582.0,0.61231836]
[1672591472047,1.89035549,16583.0,16582.0,0.61231836]
[1672591473841,1.89035549,16583.0,16582.0,0.57146616]
[1672591477323,1.89035549,16583.0,16582.0,0.57139152]
[1672591479343,2.34798341,16583.0,16582.0,0.57139152]
[1672591481089,1.89035549,16583.0,16582.0,0.57139152]
[1672591481332,1.26940649,16583.0,16582.0,0.57139152]
[1672591483831,1.89035549,16583.0,16582.0,0.57139152]
[1672591484325,1.26940649,16583.0,16582.0,0.57139152]
[1672591487875,1.72703441,16583.0,16582.0,0.57139152]
[1672591488130,2.34798341,16583.0,16582.0,0.57139152]
[1672591490563,1.89035549,16583.0,16582.0,0.57139152]
[1672591491298,2.34798341,16583.0,16582.0,0.57139152]
[1672591491562,1.72703441,16583.0,16582.0,0.57139152]
[1672591491814,1.26940649,16583.0,16582.0,0.57139152]
[1672591494346,0.66637949,16583.0,16582.0,0.57139152]
[1672591499346,0.66637949,16583.0,16582.0,0.57133032]
[1672591501899,1.28732849,16583.0,16582.0,0.57133032]
[1672591502392,1.74495641,16583.0,16582.0,0.57133032]
[1672591504131,1.28732849,16583.0,16582.0,0.57133032]
[1672591504386,0.66637949,16583.0,16582.0,0.57133032]
[1672591505689,1.28732849,16583.0,16582.0,0.57133032]
[1672591508630,1.74495641,16583.0,16582.0,0.57133032]
[1672591511109,1.12400741,16583.0,16582.0,0.57133032]
[1672591511375,0.66637949,16583.0,16582.0,0.57133032]
[1672591515860,1.12400741,16583.0,16582.0,0.57133032]
[1672591516721,1.74495641,16583.0,16582.0,0.57133032]
[1672591518988,1.12400741,16583.0,16582.0,0.57133032]
[1672591519709,0.66637949,16583.0,16582.0,0.57133032]
[1672591519956,0.66637949,16583.0,16582.0,0.57125993]
[1672591521887,0.66637949,16583.0,16582.0,0.60983684]
[1672591529755,1.28732849,16583.0,16582.0,0.60983684]
[1672591531509,1.74495641,16583.0,16582.0,0.60983684]
[1672591531750,1.74495641,16583.0,16582.0,0.61541956]
[1672591533191,2.34798341,16583.0,16582.0,0.61541956]
[1672591533442,3.23619595,16583.0,16582.0,0.61541956]
[1672591533979,2.34798341,16583.0,16582.0,0.61541956]
[1672591534224,3.23619595,16583.0,16582.0,0.61541956]
[1672591534996,3.23612587,16583.0,16582.0,0.61541956]
[1672591535707,2.34791333,16583.0,16582.0,0.61541956]
[1672591536993,3.23612587,16583.0,16582.0,0.61541956]
[1672591537728,2.34791333,16583.0,16582.0,0.61541956]
[1672591537980,3.23612587,16583.0,16582.0,0.61541956]
[1672591544983,3.23612587,16583.0,16582.0,0.61162536]
[1672591550233,1.89028541,16583.0,16582.0,0.61162536]
[1672591550485,2.34791333,16583.0,16582.0,0.61162536]
[1672591554234,2.22991333,16583.0,16582.0,0.60862536]
[1672591554500,2.34791333,16583.0,16582.0,0.61162536]
[1672591560576,1.72696433,16583.0,16582.0,0.61162536]
[1672591561071,1.89028541,16583.0,16582.0,0.61162536]
[1672591561312,2.34791333,16583.0,16582.0,0.61162536]
[1672591562854,1.72696433,16583.0,16582.0,0.61162536]
[1672591563352,2.34791333,16583.0,16582.0,0.61162536]
[1672591564347,1.72696433,16583.0,16582.0,0.61162536]
[1672591565796,1.26933641,16583.0,16582.0,0.61162536]
[1672591569794,1.26933641,16583.0,16582.0,0.61155692]
[1672591571093,1.72696433,16583.0,16582.0,0.61155692]
[1672591572081,1.26933641,16583.0,16582.0,0.61155692]
[1672591576147,0.118,16583.0,16582.0,1.57784434]
[1672591576401,0.88821254,16585.0,16583.0,0.5]
[1672591576615,0.56439367,16586.0,16583.0,0.5]
[1672591576616,1.45260621,16586.0,16584.0,1.04864614]
[1672591576846,1.06439367,16586.0,16584.0,0.45652254]
[1672591577079,1.06439367,16586.0,16583.0,1.706009]
[1672591577080,1.06445367,16586.0,16583.0,2.65308584]
[1672591577335,0.61081107,16584.0,16583.0,1.706009]
[1672591577706,0.61081107,16584.0,16583.0,2.16230919]
[1672591577957,0.61081107,16584.0,16583.0,2.97445819]
[1672591578747,0.61081107,16584.0,16583.0,3.05801115]
[1672591579000,0.61081107,16585.0,16583.0,3.06801115]
[1672591579240,0.61081107,16585.0,16584.0,0.95629989]
[1672591579483,0.61081107,16585.0,16584.0,1.26844489]
[1672591579984,0.62281107,16585.0,16584.0,1.26844489]
[1672591580242,0.61081107,16585.0,16584.0,1.26844489]
[1672591580493,0.62281107,16585.0,16584.0,1.26844489]
[1672591581005,0.62281107,16585.0,16584.0,0.56844489]
[1672591582012,0.62281107,16585.0,16584.0,0.57399852]
[1672591582261,0.62281107,16585.0,16584.0,1.17702558]
[1672591582783,0.012,16585.0,16584.0,1.17702558]
[1672591583280,1.17520474,16586.0,16584.0,1.17702558]
[1672591583530,1.17520474,16586.0,16584.0,1.06488058]
[1672591584073,0.012,16585.0,16584.0,1.06488058]
[1672591584324,1.17520474,16586.0,16584.0,1.06488058]
[1672591584563,1.17520474,16586.0,16585.0,0.112135]
[1672591584824,1.18720474,16586.0,16584.0,1.06988058]
[1672591585075,1.17420802,16586.0,16584.0,1.06488058]
[1672591585807,1.17420802,16586.0,16584.0,1.59591319]
[1672591586680,0.54183613,16585.0,16584.0,1.59591319]
[1672591587188,0.55383613,16585.0,16584.0,1.70805519]
[1672591587436,0.54183613,16585.0,16584.0,2.40805519]
[1672591587976,0.54183613,16585.0,16584.0,2.44805519]
[1672591588208,0.54183613,16585.0,16584.0,2.40805519]
[1672591588715,0.54183613,16585.0,16584.0,2.53405519]
[1672591593464,0.78189615,16585.0,16584.0,0.94369563]
[1672591593719,0.61888356,16585.0,16584.0,0.13155363]
[1672591594938,1.160528,16585.0,16584.0,0.13155363]
[1672591595428,0.54164444,16585.0,16584.0,0.13155363]
[1672591595679,0.54164444,16585.0,16584.0,0.70449402]
[1672591595920,0.54164444,16585.0,16584.0,1.16068487]
[1672591596164,0.54164444,16585.0,16584.0,1.04854087]
[1672591596418,0.54164444,16585.0,16584.0,1.16068487]
[1672591597211,0.54164444,16585.0,16584.0,1.16077841]
[1672591597473,0.81233399,16585.0,16584.0,1.76376841]
[1672591597724,0.81233399,16585.0,16584.0,2.66675841]
[1672591597983,0.81233399,16585.0,16584.0,2.66664309]
[1672591598225,0.63180834,16585.0,16584.0,3.36664309]
[1672591598471,0.63180834,16585.0,16584.0,3.66811309]
[1672591598717,0.45128601,16585.0,16584.0,3.66811309]
[1672591598972,0.45128601,16585.0,16584.0,3.2073167]
[1672591599970,0.45128601,16585.0,16584.0,3.8103067]
[1672591600454,0.45128601,16585.0,16584.0,4.34086199]
[1672591600939,0.45128601,16585.0,16584.0,4.03939199]
[1672591600940,0.18051227,16585.0,16584.0,4.03939199]
[1672591601439,0.45128601,16585.0,16584.0,4.03939199]
[1672591603977,0.18051227,16585.0,16584.0,3.64975078]
[1672591604222,0.81232061,16586.0,16585.0,0.5]
[1672591604466,0.81232061,16586.0,16585.0,3.76497842]
[1672591604754,0.45128601,16586.0,16585.0,3.87711142]
[1672591605269,0.45128601,16586.0,16585.0,4.35998826]
[1672591605764,0.45128601,16586.0,16585.0,4.36550428]
[1672591606574,0.45128601,16586.0,16585.0,4.47650428]
[1672591608107,0.45128601,16586.0,16585.0,3.90938786]
[1672591608353,0.45113575,16586.0,16585.0,3.90938786]
[1672591609078,0.81217035,16586.0,16585.0,3.90938786]
[1672591609339,0.63180834,16586.0,16585.0,4.02038786]
[1672591609590,0.63180834,16586.0,16585.0,3.90938786]
[1672591609835,0.63180834,16586.0,16585.0,4.02038786]
[1672591611309,1.08310773,16586.0,16585.0,4.02038786]
[1672591611784,1.08310773,16586.0,16585.0,3.72038786]
[1672591612032,0.81233399,16586.0,16585.0,3.72038786]
[1672591613984,0.81233399,16586.0,16585.0,4.02038786]
[1672591614242,0.81233399,16586.0,16585.0,3.72038786]
[1672591614985,0.45129939,16586.0,16585.0,3.60938786]
[1672591615966,0.45129939,16586.0,16585.0,3.72038786]
[1672591617181,0.45129939,16586.0,16585.0,4.0659104]
[1672591617442,0.45129939,16586.0,16585.0,4.1769104]
[1672591618697,1.08355881,16587.0,16585.0,4.0659104]
[1672591618961,1.08355881,16587.0,16585.0,3.9537774]
[1672591619219,1.08355881,16587.0,16586.0,0.112124]
[1672591619470,1.08355881,16587.0,16586.0,0.715042]
[1672591619724,1.08355881,16587.0,16586.0,0.60841948]
[1672591620720,1.08355881,16587.0,16586.0,0.63641948]
[1672591622737,1.08355881,16587.0,16586.0,0.6363999]
[1672591622994,1.08355881,16587.0,16586.0,0.6083999]
[1672591623253,1.08355881,16587.0,16586.0,0.6363999]
[1672591629771,1.08355881,16587.0,16586.0,0.6083999]
[1672591630029,1.08355881,16587.0,16586.0,0.6363999]
[1672591630277,1.07355881,16587.0,16586.0,0.6363999]
[1672591630774,0.54155224,16587.0,16586.0,1.09292244]
[1672591631277,0.54155224,16587.0,16586.0,1.20504444]
[1672591632241,0.54155224,16587.0,16586.0,1.09288535]
[1672591633235,0.54155224,16587.0,16586.0,1.0928854]
[1672591633747,0.54155224,16587.0,16586.0,0.6363999]
[1672591634740,0.54276676,16587.0,16586.0,0.6363999]
[1672591634987,0.54276657,16587.0,16586.0,0.6363999]
[1672591635235,1.23010682,16588.0,16586.0,0.6083999]
[1672591635479,1.23010682,16588.0,16586.0,1.09292244]
[1672591635993,1.23010682,16588.0,16586.0,0.6363999]
[1672591636243,1.23010682,16588.0,16586.0,1.06492244]
[1672591637995,1.23010682,16588.0,16586.0,1.51327146]
[1672591639036,1.23010682,16588.0,16586.0,2.21327146]
[1672591639287,1.23010682,16588.0,16587.0,0.112115]
[1672591639547,1.23010682,16588.0,16586.0,1.75674892]
[1672591639801,1.23010682,16588.0,16587.0,0.00548694]
[1672591640313,1.23010682,16588.0,16587.0,0.11759794]
[1672591640604,1.23010682,16588.0,16587.0,0.00548694]
[1672591641070,0.61929575,16588.0,16587.0,0.00548694]
[1672591641319,0.61929575,16588.0,16587.0,0.11759794]
[1672591641569,0.61929575,16588.0,16587.0,0.00548694]
[1672591651172,0.61929575,16588.0,16587.0,0.00538683]
[1672591652228,0.48525433,16589.0,16587.0,0.65177412]
[1672591652458,0.52873179,16589.0,16587.0,1.00178892]
[1672591653477,0.61102707,16588.0,16587.0,1.00178892]
[1672591653728,0.61102707,16588.0,16587.0,0.53966312]
[1672591654205,0.61102707,16588.0,16587.0,1.00678892]
[1672591654451,0.7126037,16589.0,16587.0,0.53966312]
[1672591654705,0.7126037,16589.0,16587.0,1.00178892]
[1672591654706,0.52873179,16589.0,16587.0,1.00178892]
[1672591655859,0.52873179,16589.0,16588.0,9.352e-05]
[1672591656904,0.52873179,16589.0,16588.0,0.0055459]
[1672591657422,0.52873179,16589.0,16588.0,0.0105459]
[1672591657666,0.52873179,16589.0,16588.0,0.0055459]
[1672591657910,0.52873179,16589.0,16588.0,0.0105459]
[1672591659352,0.5,16589.0,16588.0,0.0105459]
[1672591659597,0.5,16589.0,16588.0,0.54253027]
[1672591660356,1.60969981,16590.0,16588.0,0.54253027]
[1672591660607,0.3,16589.0,16588.0,0.54253027]
[1672591661107,0.3,16589.0,16588.0,0.53753027]
[1672591661363,0.3,16589.0,16588.0,0.54553027]
[1672591661609,0.3,16589.0,16588.0,0.53753027]
[1672591661861,0.3,16589.0,16588.0,0.54253027]
[1672591662616,0.3,16589.0,16588.0,0.0055459]
[1672591663103,0.3,16589.0,16588.0,0.00545238]
[1672591664090,0.3,16589.0,16588.0,0.01045238]
[1672591664328,0.3,16589.0,16588.0,0.00545238]
[1672591664582,0.3,16589.0,16588.0,0.01045238]
[1672591666826,0.3,16589.0,16588.0,0.0105459]
[1672591667104,0.3,16589.0,16588.0,0.0055459]
[1672591667357,0.3,16589.0,16588.0,0.0105459]
[1672591667618,0.3,16589.0,16588.0,0.0055459]
[1672591667880,0.3,16589.0,16588.0,0.0105459]
[1672591668334,0.3367233,16589.0,16588.0,0.01045238]
[1672591669854,0.9576723,16589.0,16588.0,0.01045238]
[1672591670099,1.32459281,16589.0,16588.0,0.01045238]
[1672591670825,1.32459276,16589.0,16588.0,0.01045238]
[1672591671080,0.3367233,16589.0,16588.0,0.01045238]
[1672591672579,0.3367233,16589.0,16588.0,0.0103757]
[1672591674972,0.3367233,16589.0,16588.0,0.0053757]
[1672591675462,0.3367233,16589.0,16588.0,0.0103757]
[1672591675714,0.3367233,16589.0,16588.0,0.005]
[1672591677160,0.70342096,16589.0,16588.0,0.005]
[1672591677376,0.3367233,16589.0,16588.0,0.005]
[1672591677887,0.3367233,16589.0,16588.0,0.01043705]
[1672591681261,0.9576723,16589.0,16588.0,0.01043705]
[1672591681515,0.3367233,16589.0,16588.0,0.01043705]
[1672591682276,0.9395323,16589.0,16588.0,0.01043705]
[1672591683253,1.5604813,16589.0,16588.0,0.01043705]
[1672591683760,1.9271217,16589.0,16588.0,0.01043705]
[1672591684245,1.9271217,16589.0,16588.0,0.00543705]
[1672591684507,1.30617267,16589.0,16588.0,0.01043705]
[1672591684748,1.30617267,16589.0,16588.0,0.00543705]
[1672591684967,0.9395323,16589.0,16588.0,0.005]
[1672591685708,0.9395323,16589.0,16588.0,0.01043705]
[1672591691138,0.93943812,16589.0,16588.0,0.01043705]
[1672591693855,0.93943812,16589.0,16588.0,0.00543705]
[1672591694094,0.93943812,16589.0,16588.0,0.01043705]
[1672591694348,0.93943812,16589.0,16588.0,0.00543705]
[1672591694598,0.93943812,16589.0,16588.0,0.01043705]
[1672591703187,0.93943812,16589.0,16588.0,0.00543705]
[1672591703426,0.93943812,16589.0,16588.0,0.01043705]
[1672591703675,0.93943812,16589.0,16588.0,0.00543705]
[1672591703919,0.93943812,16589.0,16588.0,0.01043705]
[1672591708818,1.82765066,16589.0,16588.0,0.01043705]
[1672591709084,2.44859966,16589.0,16588.0,0.01043705]
[1672591709827,2.44859966,16589.0,16588.0,0.00543705]
[1672591710077,2.44859966,16589.0,16588.0,0.01043705]
[1672591710394,2.44859966,16589.0,16588.0,0.00543705]
[1672591710585,2.44859966,16589.0,16588.0,0.01043705]
[1672591710857,2.44859966,16589.0,16588.0,0.005]
[1672591711787,2.44859966,16589.0,16588.0,0.01043705]
[1672591712739,2.44859966,16589.0,16588.0,0.01033422]
[1672591712975,2.44859966,16589.0,16588.0,0.00543705]
[1672591713226,2.44859966,16589.0,16588.0,0.01043705]
[1672591713489,2.44859966,16589.0,16588.0,0.00543705]
[1672591713746,2.44859966,16589.0,16588.0,0.01043705]
[1672591719276,2.44859966,16589.0,16588.0,0.00543705]
[1672591719817,2.44859966,16589.0,16586.0,0.95221904]
[1672591720069,2.44670892,16589.0,16588.0,0.005]
[1672591720311,1.82765066,16589.0,16588.0,0.005]
[1672591720540,2.44859966,16589.0,16588.0,0.005]
[1672591720823,1.2604813,16589.0,16587.0,0.92264559]
[1672591721073,0.620949,16588.0,16587.0,0.46051979]
[1672591721325,0.6395323,16589.0,16587.0,0.46757739]
[1672591721829,0.620949,16588.0,16587.0,0.46757739]
[1672591722081,0.5,16588.0,16587.0,0.00545159]
[1672591722330,1.120949,16588.0,16587.0,0.00545159]
[1672591722607,0.5,16588.0,16587.0,0.00545159]
[1672591722850,0.53197527,16588.0,16587.0,0.01045159]
[1672591723348,0.03197527,16588.0,16587.0,0.00545159]
[1672591733669,0.53197527,16588.0,16587.0,0.0053662]
[1672591733912,1.15292427,16588.0,16587.0,0.0053662]
[1672591734160,0.03197527,16588.0,16587.0,0.0053662]
[1672591736567,1.15292427,16588.0,16587.0,0.0053662]
[1672591744237,0.65292427,16588.0,16587.0,0.0053662]
[1672591747237,0.03197527,16588.0,16587.0,0.0053662]
[1672591747483,0.65292427,16588.0,16587.0,0.0053662]
[1672591749484,0.03197527,16588.0,16587.0,0.0053662]
[1672591750943,0.03197527,16588.0,16587.0,0.58017537]
[1672591752724,0.64283478,16588.0,16587.0,0.58017537]
[1672591756897,0.64283478,16588.0,16587.0,0.11804957]
[1672591757891,0.64283478,16588.0,16587.0,0.11793102]
[1672591759147,0.64283478,16588.0,16587.0,0.58005682]
[1672591759401,0.64283478,16588.0,16587.0,0.11793102]
[1672591759652,0.03197527,16588.0,16587.0,0.11793102]
[1672591764191,0.65292427,16588.0,16587.0,0.11793102]
[1672591765681,0.03197527,16588.0,16587.0,0.11793102]
[1672591765921,0.65292427,16588.0,16587.0,0.11793102]
[1672591766410,0.03197527,16588.0,16587.0,0.11793102]
[1672591767336,0.65292427,16588.0,16587.0,0.11793102]
[1672591769386,0.03197527,16588.0,16587.0,0.11793102]
[1672591769885,0.65292427,16588.0,16587.0,0.11793102]
[1672591770363,0.03197527,16588.0,16587.0,0.11793102]
[1672591771953,0.65292427,16588.0,16587.0,0.11793102]
[1672591772453,0.03197527,16588.0,16587.0,0.11793102]
[1672591772705,0.65292427,16588.0,16587.0,0.11793102]
[1672591782033,0.65292427,16588.0,16587.0,0.11781797]
[1672591792399,0.65292427,16588.0,16587.0,0.11281797]
[1672591792647,0.65292427,16588.0,16587.0,0.11701818]
[1672591809030,0.6528085,16588.0,16587.0,0.11701818]
[1672591814439,0.0318595,16588.0,16587.0,0.11701818]
[1672591814694,0.5318595,16588.0,16587.0,0.11701818]
[1672591814943,1.1528085,16588.0,16587.0,0.11701818]
[1672591815194,0.5318595,16588.0,16587.0,0.11701818]
[1672591815441,1.1528085,16588.0,16587.0,0.11701818]
[1672591817448,1.5309189,16588.0,16587.0,0.11701818]
[1672591817695,1.1528085,16588.0,16587.0,0.11701818]
[1672591817952,1.53099532,16588.0,16587.0,0.11701818]
[1672591818201,1.53098277,16588.0,16587.0,0.11701818]
[1672591818447,1.1528085,16588.0,16587.0,0.11701818]
[1672591818696,0.5318595,16588.0,16587.0,0.11701818]
[1672591821735,1.1347045,16588.0,16587.0,0.11701818]
[1672591821986,1.7556535,16588.0,16587.0,0.11701818]
[1672591822489,2.13381992,16588.0,16587.0,0.11701818]
[1672591822755,0.5,16587.0,16585.0,0.4621258]
[1672591823003,0.620949,16586.0,16584.0,1.94378196]
[1672591823258,0.620949,16586.0,16584.0,1.51588196]
[1672591823259,0.61105021,16585.0,16584.0,1.51588196]
[1672591823508,0.61105021,16585.0,16584.0,1.06688196]
[1672591825217,0.61105021,16585.0,16584.0,1.20888196]
[1672591826193,0.61105021,16585.0,16584.0,1.32214496]
[1672591827804,0.61105021,16585.0,16584.0,0.71917896]
[1672591828520,0.61105021,16585.0,16584.0,0.60591596]
[1672591828777,0.61105021,16585.0,16584.0,0.71918096]
[1672591830293,0.61105021,16585.0,16584.0,0.60591596]
[1672591830779,0.61105021,16585.0,16584.0,0.142]
[1672591831022,0.64880579,16585.0,16584.0,0.142]
[1672591831290,0.03775558,16585.0,16584.0,0.142]
[1672591831556,0.41758552,16585.0,16584.0,0.142]
[1672591832035,1.64147952,16585.0,16584.0,0.142]
[1672591832282,2.24443352,16585.0,16584.0,0.142]